fUSD/lending_fUSD_20240831
["ID","MTS","AMOUNT","RATE_DAILY","PERIOD"]
[336733799,1725089450081,-5000.0,0.00022,4]
[336733800,1725089450092,-5031.290713,0.00022,2]
[336733801,1725089450102,-274.9233674,0.00022,2]
[336733802,1725089450112,-21565.71759752,0.00022,2]
[336733803,1725089450138,-626.4348697,0.00022,2]
[336733804,1725089450151,-12706.10000001,0.00022,2]
[336733806,1725089579988,155.81,0.00010959,2]
[336733815,1725090593176,151.44,0.00010959,2]
[336733829,1725090631386,-1000.0,0.00011,2]
[336733830,1725090631396,-420.87,0.00011,2]
[336733831,1725090631406,-413.88836985,0.00011983,2]
[336733832,1725090631416,-413.88836985,0.00012318,2]
[336733833,1725090631425,-413.88836985,0.00012359,2]
[336733834,1725090631434,-413.88836985,0.00012722,2]
[336733835,1725090631444,-413.88836985,0.00013138,2]
[336733836,1725090631454,-413.88836985,0.00013316,2]
[336733837,1725090631463,-413.88836985,0.00013425,2]
[336733838,1725090631476,-499.99,0.00013611,2]
[336733839,1725090631485,-519.06958677,0.00013611,2]
[336733840,1725090631538,-5567.81518432,0.00013611,2]
[336733841,1725090631551,-3913.11522891,0.00013611,2]
[336733843,1725090631559,-6509.84,0.00013699,2]
[336733845,1725090631569,-179.82,0.00013699,2]
[336733846,1725090631578,-413.88836985,0.00013852,2]
[336733848,1725090631587,-413.88836985,0.00014178,2]
[336733850,1725090631596,-413.88836985,0.00014502,2]
[336733852,1725090631605,-413.88836985,0.00014583,2]
[336733854,1725090631614,-413.88836985,0.00014885,2]
[336733856,1725090631623,-500.27345,0.00015,2]
[336733858,1725090631632,-413.88836985,0.00015084,2]
[336733859,1725090631641,-1000.0,0.00015336,2]
[336733860,1725090631651,-413.88836985,0.0001558,2]
[336733861,1725090631660,-413.88836985,0.00015837,2]
[336733862,1725090631669,-413.88836985,0.0001604,2]
[336733863,1725090631678,-413.88836985,0.0001633,2]
[336733864,1725090631687,-159.42,0.00016401,2]
[336733865,1725090631696,-413.88836985,0.00016631,2]
[336733866,1725090631706,-150.0,0.00016862,2]
[336733867,1725090631715,-413.88836985,0.00016891,2]
[336733868,1725090631723,-413.88836985,0.00017067,2]
[336733869,1725090631732,-413.88836985,0.00017416,2]
[336733870,1725090631742,-413.88836985,0.00017741,2]
[336733871,1725090631751,-413.88836985,0.00017891,2]
[336733872,1725090631760,-215.1904,0.00017897,2]
[336733873,1725090631769,-413.88836985,0.00018168,2]
[336733874,1725090631778,-439.52,0.00018292,2]
[336733875,1725090631787,-32.37712748,0.00018326,2]
[336733876,1725090631858,-217.62287252,0.00018326,2]
[336733877,1725090631867,-38.35272177,0.00018373,2]
[336733886,1725090637446,-9484.0,0.00018373,2]
[336733888,1725090637458,-3550.10727823,0.00018373,2]
[336733890,1725090637469,-413.88836985,0.00018383,2]
[336733892,1725090637480,-982.04,0.000185,7]
[336733893,1725090637489,-171.87,0.00018593,2]
[336733894,1725090637501,-200.0,0.0001867,2]
[336733895,1725090637511,-861.97,0.00018681,2]
[336733896,1725090637522,-170.0,0.00018705,2]
[336733897,1725090637532,-2751.0,0.00018709,2]
[336733898,1725090637541,-413.88836985,0.00018888,2]
[336733899,1725090637553,-413.88836985,0.00018996,2]
[336733900,1725090637563,-413.88836985,0.00019224,2]
[336733901,1725090637572,-413.88836985,0.00019475,2]
[336733902,1725090637583,-300.0,0.00019751,2]
[336733903,1725090637592,-234.0,0.00019823,2]
[336733904,1725090637601,-413.88836985,0.00019931,2]
[336733905,1725090637610,-175.96902228,0.0002,2]
[336733906,1725090637619,-150.0,0.0002,2]
[336733907,1725090637629,-195.0,0.0002,2]
[336733908,1725090637638,-1000.0,0.0002,2]
[336733909,1725090637647,-150.0,0.0002,2]
[336733910,1725090637656,-155.0,0.0002012,6]
[336733911,1725090637665,-413.88836985,0.00020169,2]
[336733912,1725090637675,-250.0,0.00020234,2]
[336733913,1725090637684,-1000.0,0.00020284,2]
[336733914,1725090637693,-167.0,0.00020417,2]
[336733915,1725090637703,-413.88836985,0.00020512,2]
[336733916,1725090637712,-413.88836985,0.00020687,2]
[336733917,1725090637721,-413.88836985,0.0002091,2]
[336733918,1725090637730,-17256.27955354,0.0002099,2]
[336733919,1725090637739,-318.3,0.00021,2]
[336733920,1725090637748,-1012.08,0.00021,2]
[336733921,1725090637757,-167.0,0.00021091,2]
[336733922,1725090637767,-300.0,0.00021121,2]
[336733923,1725090637776,-159.42,0.0002118,2]
[336733924,1725090637784,-413.88836985,0.00021312,2]
[336733925,1725090637794,-155.0,0.0002142,8]
[336733926,1725090637803,-413.88836985,0.00021487,2]
[336733927,1725090637812,-154.16449565,0.00021526,2]
[336733928,1725090637823,-199.8,0.00021589,30]
[336733929,1725090637832,-413.88836994,0.00021745,2]
[336733930,1725090637841,-167.0,0.00021765,2]
[336733931,1725090637850,-170.0,0.00021822,2]
[336733932,1725090637859,-3493.056599,0.000219,2]
[336733933,1725090637868,-213.7494,0.000219,2]
[336733934,1725090637878,-318.3,0.00021905,2]
[336733935,1725090637887,-2435.09203028,0.00021918,2]
[336733936,1725090637914,-1069.38638957,0.00021918,2]
[336733937,1725090637928,-601.51186436,0.00021918,2]
[336733938,1725090637939,-392.67304101,0.00021918,2]
[336733939,1725090637951,-2546.41667478,0.00021918,2]
[336733940,1725090637960,-150.0,0.00021918,2]
[336733942,1725090637969,-4110.02638848,0.00022,2]
[336733943,1725090637978,-242.56156179,0.00022,2]
[336733944,1725090637987,-1071.39181591,0.00022,2]
[336733945,1725090637995,-316.50648229,0.00022,2]
[336733946,1725090638007,-302.5407008,0.00022,2]
[336733947,1725090638021,-630.95281691,0.00022,2]
[336733948,1725090638030,-26.41527234,0.00022,2]
[336733949,1725090638041,-173.58472766,0.00022,2]
[336733950,1725090638050,-184.42027234,0.00022065,2]
[336733951,1725090638062,-1858.427974,0.00022065,2]
[336733952,1725090638099,-10806.95853486,0.00022065,2]
[336733953,1725090638108,-2834.6865341,0.0002208,2]
[336733954,1725090638118,-227.49850234,0.0002211,2]
[336733955,1725090638127,-3000.0,0.000222,2]
[336733956,1725090638136,-500.0,0.000223,2]
[336733957,1725090638146,-234.0,0.00022301,2]
[336733958,1725090638156,-3040.163,0.00022413,2]
[336733959,1725090638165,-167.0,0.00022439,2]
[336733960,1725090638174,-1000.0,0.00022466,2]
[336733961,1725090638184,-150.0,0.00022495,2]
[336733962,1725090638195,-1000.0,0.000225,2]
[336733963,1725090638205,-33554.68343715,0.000225,2]
[336733964,1725090638215,-1000.0,0.00022514,3]
[336733965,1725090638226,-1000.0,0.00022514,3]
[336733966,1725090638236,-1000.0,0.00022514,3]
[336733967,1725090638246,-1000.0,0.00022514,2]
[336733968,1725090638258,-1000.0,0.00022514,3]
[336733969,1725090638268,-1000.0,0.00022514,5]
[336733970,1725090638278,-1000.0,0.00022514,2]
[336733971,1725090638287,-1000.0,0.00022514,3]
[336733972,1725090638297,-1000.0,0.00022514,2]
[336733973,1725090638308,-1000.0,0.00022514,3]
[336733974,1725090638319,-1000.0,0.00022514,3]
[336733975,1725090638329,-1000.0,0.00022514,3]
[336733976,1725090638341,-1000.0,0.00022514,2]
[336733977,1725090638351,-1000.0,0.00022514,3]
[336733978,1725090638360,-1000.0,0.00022514,5]
[336733979,1725090638369,-1000.0,0.00022514,3]
[336733980,1725090638378,-1000.0,0.00022514,2]
[336733981,1725090638388,-1012.08,0.00022565,2]
[336733982,1725090638397,-150.0,0.00022699,2]
[336733983,1725090638408,-155.0,0.0002273,11]
[336733984,1725090638418,-335.06,0.00022799,2]
[336733985,1725090638427,-335.06,0.00022799,2]
[336733986,1725090638437,-335.06,0.00022799,2]
[336733987,1725090638446,-335.06,0.00022799,2]
[336733988,1725090638457,-335.06,0.00022799,2]
[336733989,1725090638468,-335.06,0.00022799,2]
[336733990,1725090638480,-335.06,0.00022799,2]
[336733991,1725090638491,-335.06,0.00022799,2]
[336733992,1725090638502,-335.06,0.00022799,2]
[336733993,1725090638513,-335.06,0.00022799,2]
[336733994,1725090638524,-22615.75,0.000228,7]
[336733995,1725090638533,-100172.6035,0.000228,2]
[336733996,1725090638543,-2500.0,0.000228,2]
[336733997,1725090638553,-318.3,0.0002281,2]
[336733998,1725090638563,-1000.0,0.00022819,2]
[336733999,1725090638572,-1000.0,0.00022848,2]
[336734000,1725090638582,-72700.6087,0.000229,2]
[336734001,1725090638592,-158.37123049,0.000229,2]
[336734002,1725090638602,-1000.0,0.00023,15]
[336734003,1725090638611,-3000.0,0.00023,20]
[336734004,1725090638621,-2900.0,0.00023,10]
[336734005,1725090638631,-10000.0,0.00023,5]
[336734006,1725090638641,-244.81571525,0.00023,2]
[336734007,1725090638650,-500.0,0.00023,13]
[336734008,1725090638660,-2225.0,0.00023,2]
[336734009,1725090638669,-500.0,0.00023,30]
[336734010,1725090638679,-264.60356574,0.0002301,2]
[336734011,1725090638688,-150.0,0.00023071,2]
[336734012,1725090638698,-5000.0,0.00023107,2]
[336734013,1725090638707,-167.0,0.00023113,2]
[336734014,1725090638716,-34587.6564242,0.0002319,4]
[336734015,1725090638726,-5000.0,0.00023197,2]
[336734016,1725090638735,-49332.33918216,0.000232,2]
[336734017,1725090638745,-180.0,0.00023205,2]
[336734018,1725090638754,-405.42962821,0.0002322,2]
[336734019,1725090638763,-158.37123049,0.00023233,2]
[336734020,1725090638772,-3458.76564242,0.00023238,4]
[336734021,1725090638782,-3458.76564242,0.0002324,4]
[336734022,1725090638791,-5000.0,0.00023248,2]
[336734023,1725090638800,-1000.0,0.0002325,15]
[336734024,1725090638809,-6917.53128484,0.0002329,4]
[336734025,1725090638818,-250.0,0.000233,2]
[336734026,1725090638828,-1200.0,0.000233,2]
[336734027,1725090638839,-496.50966318,0.000233,2]
[336734028,1725090638849,-751.49658361,0.000233,2]
[336734029,1725090638858,-2000.0,0.000233,2]
[336734030,1725090638868,-24211.3594969,0.00023326,4]
[336734031,1725090638877,-27219.0,0.00023336,2]
[336734032,1725090638887,-24211.3594969,0.00023444,4]
[336734033,1725090638896,-25000.0,0.00023454,2]
[336734034,1725090638906,-6917.53128484,0.0002349,4]
[336734035,1725090638915,-1000.0,0.000235,15]
[336734036,1725090638925,-1000.0,0.000235,2]
[336734037,1725090638935,-1000.0,0.000235,2]
[336734038,1725090638944,-1000.0,0.000235,2]
[336734039,1725090638953,-1000.0,0.000235,2]
[336734040,1725090638963,-1000.0,0.000235,2]
[336734041,1725090638972,-1000.0,0.000235,2]
[336734042,1725090638983,-1000.0,0.000235,2]
[336734043,1725090638994,-1000.0,0.000235,2]
[336734044,1725090639005,-1007.7417,0.000235,2]
[336734045,1725090639014,-1009.931,0.000235,2]
[336734046,1725090639024,-3458.76564242,0.00023557,4]
[336734047,1725090639034,-158.37123049,0.00023567,2]
[336734048,1725090639043,-841.75,0.000236,14]
[336734049,1725090639054,-3458.76564242,0.00023624,4]
[336734050,1725090639065,-5000.0,0.00023634,2]
[336734051,1725090639075,-150.0,0.00023648,2]
[336734052,1725090639085,-300.0,0.000237,2]
[336734053,1725090639096,-300.0,0.000237,8]
[336734054,1725090639107,-3458.76564242,0.00023705,4]
[336734055,1725090639117,-318.3,0.00023715,2]
[336734056,1725090639127,-13835.0625697,0.00023732,4]
[336734057,1725090639137,-18613.63241681,0.00023742,2]
[336734058,1725090639146,-1500.0,0.00023746,2]
[336734059,1725090639155,-183.41939422,0.0002377,2]
[336734060,1725090639165,-241.20022017,0.0002377,2]
[336734061,1725090639174,-171.16151565,0.00023778,2]
[336734062,1725090639185,-17293.8282121,0.0002378,4]
[336734063,1725090639196,-167.0,0.00023787,2]
[336734064,1725090639206,-14819.72970705,0.0002379,4]
[336734065,1725090639221,-2474.09850505,0.0002379,4]
[336734066,1725090639230,-1424.27494457,0.0002379,4]
[336734067,1725090639241,-504.3514221,0.0002379,4]
[336734068,1725090639252,-2146.17360397,0.0002379,4]
[336734070,1725090639270,-26080.00494936,0.0002379,4]
[336734071,1725090639282,-33616.40358757,0.000238,7]
[336734073,1725090639522,-451.92,0.00020404,2]
[336734074,1725090639535,-9570.95101074,0.000238,7]
[336734075,1725090639547,-1050.1,0.000238,7]
[336734076,1725090639571,-1458.48503404,0.000238,7]
[336734077,1725090639583,-1995.77690403,0.000238,7]
[336734078,1725090639594,-1182.8,0.000238,7]
[336734079,1725090639609,-2063.47265773,0.000238,7]
[336734080,1725090639624,-1736.41306025,0.000238,7]
[336734081,1725090639636,-507.02400689,0.000238,7]
[336734082,1725090639649,-515.56383828,0.000238,7]
[336734083,1725090639661,-582.83643837,0.000238,7]
[336734084,1725090639674,-1979.79404271,0.000238,7]
[336734085,1725090639699,-697.21547152,0.000238,7]
[336734086,1725090639711,-666.66,0.000238,7]
[336734087,1725090639722,-5590.95131345,0.000238,7]
[336734088,1725090639733,-104842.81487495,0.000238,7]
[336734089,1725090639743,-6549.57694843,0.000238,3]
[336734090,1725090639752,-234.537063,0.000238,7]
[336734091,1725090639761,-234.537063,0.000238,7]
[336734092,1725090639770,-151.0,0.000238,7]
[336734093,1725090639780,-700.0,0.000238,8]
[336734094,1725090639789,-151.301554,0.000238,7]
[336734095,1725090639798,-151.301554,0.000238,7]
[336734096,1725090639807,-151.0,0.000238,7]
[336734097,1725090639816,-285.088856,0.000238,7]
[336734098,1725090639825,-285.088856,0.000238,7]
[336734099,1725090639834,-151.0,0.000238,7]
[336734100,1725090639843,-10051.60164,0.00023831,4]
[336734101,1725090639853,-20103.20328,0.0002385,4]
[336734102,1725090639863,-234.537063,0.0002386,7]
[336734103,1725090639872,-234.537063,0.0002386,7]
[336734134,1725090640170,-285.088856,0.0002386,7]
[336734136,1725090640180,-285.088856,0.0002386,7]
[336734138,1725090640189,-244.138189,0.0002386,7]
[336734140,1725090640198,-33875.85797355,0.0002386,4]
[336734142,1725090640451,-83399.04457014,0.0002386,4]
[336734143,1725090640462,-514.63207778,0.0002386,4]
[336734144,1725090640474,-1041.85,0.0002386,4]
[336734145,1725090640485,-52045.84325853,0.0002386,4]
[336734146,1725090640495,-500.0,0.00023869,2]
[336734147,1725090640506,-500.0,0.00023869,2]
[336734148,1725090640515,-500.0,0.00023869,2]
[336734149,1725090640525,-281799.51460888,0.0002387,4]
[336734150,1725090640536,-455.28848318,0.0002387,4]
[336734151,1725090640547,-9643.92039372,0.0002387,4]
[336734152,1725090640559,-460.63094984,0.0002387,4]
[336734154,1725090642427,-150.0,0.00011,2]
[336734155,1725090642437,-196.41,0.000185,7]
[336734156,1725090642447,-150.77147,0.00022,2]
[336734157,1725090642457,-214.76,0.000236,14]
[336734158,1725090642467,-263.91371528,0.0002387,4]
[336734159,1725090642478,-277.95,0.0002387,4]
[336734160,1725090642499,-680.3546727,0.0002387,4]
[336734161,1725090642511,-764.825,0.0002387,4]
[336734162,1725090642523,-12386.30117644,0.0002387,4]
[336734164,1725090643752,-8140.2985015,0.0002387,4]
[336734165,1725090643763,-1490.79089986,0.0002387,4]
[336734166,1725090643775,-772.82854254,0.0002387,4]
[336734167,1725090643787,-6655.27794624,0.0002387,4]
[336734168,1725090643798,-559.40606601,0.0002387,4]
[336734169,1725090643813,-294.14994472,0.0002387,4]
[336734170,1725090643828,-20968.90406957,0.0002387,4]
[336734171,1725090643838,-234.537063,0.0002387,7]
[336734172,1725090643847,-234.537063,0.0002387,7]
[336734173,1725090643856,-151.0,0.0002387,7]
[336734174,1725090643866,-151.301554,0.0002387,7]
[336734175,1725090643876,-151.301554,0.0002387,7]
[336734176,1725090643886,-151.0,0.0002387,7]
[336734177,1725090643895,-291.378282,0.0002387,7]
[336734178,1725090643904,-291.378282,0.0002387,7]
[336734179,1725090643914,-285.088856,0.0002387,7]
[336734180,1725090643924,-285.088856,0.0002387,7]
[336734181,1725090643933,-5000.0,0.00023872,2]
[336734182,1725090643942,-500.0,0.00023873,2]
[336734183,1725090643952,-5000.0,0.00023873,2]
[336734184,1725090643962,-20103.20328,0.0002389,4]
[336734185,1725090643971,-22615.75,0.000239,7]
[336734186,1725090643980,-158.37123049,0.000239,2]
[336734187,1725090643990,-1000.0,0.000239,8]
[336734188,1725090643999,-40206.40656,0.00023912,4]
[336734189,1725090644008,-5000.0,0.00023914,2]
[336734190,1725090644017,-500.0,0.00023921,2]
[336734191,1725090644026,-500.0,0.00023921,2]
[336734192,1725090644036,-9711.48766367,0.00023922,2]
[336734193,1725090644048,-325592.51233633,0.00023922,2]
[336734194,1725090644057,-234.537063,0.00023922,7]
[336734195,1725090644066,-234.537063,0.00023922,7]
[336734196,1725090644075,-151.301554,0.00023922,7]
[336734197,1725090644085,-151.301554,0.00023922,7]
[336734198,1725090644094,-151.0,0.00023922,7]
[336734199,1725090644103,-291.378282,0.00023922,7]
[336734200,1725090644112,-291.378282,0.00023922,7]
[336734201,1725090644121,-285.088856,0.00023922,7]
[336734202,1725090644130,-285.088856,0.00023922,7]
[336734203,1725090644139,-473.5493378,0.00023987,10]
[336734204,1725090644148,-500.0,0.00023999,2]
[336734205,1725090644158,-500.0,0.00023999,2]
[336734206,1725090644176,-1000.0,0.00024,4]
[336734207,1725090644186,-965.62050363,0.00024,2]
[336734208,1725090644195,-12690.9961432,0.00024,2]
[336734209,1725090644205,-1000.0,0.00024,14]
[336734210,1725090644215,-2483.01070538,0.00024,5]
[336734211,1725090644224,-76173.99600235,0.00024,2]
[336734212,1725090644233,-2756.79885797,0.00024,2]
[336734213,1725090644242,-1000.0,0.00024,24]
[336734214,1725090644251,-155.41366487,0.00024,15]
[336734215,1725090644260,-1300.0,0.00024,2]
[336734216,1725090644269,-234.537063,0.00024,7]
[336734217,1725090644278,-234.537063,0.00024,7]
[336734218,1725090644288,-10000.0,0.00024,2]
[336734219,1725090644297,-10000.0,0.00024,2]
[336734220,1725090644306,-10000.0,0.00024,2]
[336734221,1725090644315,-15660.4795886,0.00024,2]
[336734222,1725090644324,-10000.0,0.00024,2]
[336734223,1725090644333,-16490.28067694,0.00024,2]
[336734224,1725090644343,-10980.20803631,0.00024,2]
[336734225,1725090644352,-7586.28395314,0.00024,2]
[336734226,1725090644362,-10424.33738317,0.00024,2]
[336734227,1725090644371,-151.301554,0.00024,7]
[336734228,1725090644380,-151.301554,0.00024,7]
[336734229,1725090644390,-261.07135,0.00024,7]
[336734230,1725090644399,-291.378282,0.00024,7]
[336734231,1725090644411,-291.378282,0.00024,7]
[336734232,1725090644420,-285.088856,0.00024,7]
[336734233,1725090644430,-285.088856,0.00024,7]
[336734234,1725090644439,-614.72,0.00024025,2]
[336734235,1725090644449,-304.0,0.0002404,14]
[336734236,1725090644457,-2741.71,0.0002406,2]
[336734237,1725090644468,-3059.65699599,0.0002408,2]
[336734238,1725090644477,-2913.15,0.00024092,2]
[336734239,1725090644487,-1012.08,0.0002413,2]
[336734240,1725090644496,-1400.0,0.000242,8]
[336734241,1725090644507,-398.68939215,0.0002421,2]
[336734242,1725090644516,-1491.26564693,0.0002421,2]
[336734243,1725090644526,-4731.23,0.00024212,2]
[336734244,1725090644536,-150.0,0.00024225,2]
[336734245,1725090644546,-4647.12,0.00024233,2]
[336734246,1725090644556,-158.37123049,0.00024233,2]
[336734247,1725090644565,-1000.0,0.0002425,15]
[336734248,1725090644575,-1222.32832375,0.0002425,2]
[336734249,1725090644585,-24020.86,0.0002427,2]
[336734250,1725090644594,-4887.99,0.00024289,2]
[336734251,1725090644608,-500.0,0.00024289,2]
[336734252,1725090644622,-202685.55344146,0.0002429,4]
[336734253,1725090644634,-234.537063,0.0002429,7]
[336734254,1725090644647,-234.537063,0.0002429,7]
[336734255,1725090644658,-151.301554,0.0002429,7]
[336734256,1725090644669,-151.301554,0.0002429,7]
[336734257,1725090644681,-291.378282,0.0002429,7]
[336734258,1725090644693,-291.378282,0.0002429,7]
[336734259,1725090644705,-285.088856,0.0002429,7]
[336734260,1725090644716,-285.088856,0.0002429,7]
[336734261,1725090644728,-1800.0,0.000243,8]
[336734262,1725090644741,-10264.22632052,0.000243,2]
[336734263,1725090644753,-500.0,0.00024399,2]
[336734264,1725090644765,-1019.58983609,0.000244,11]
[336734265,1725090644781,-6261.42364388,0.000244,11]
[336734266,1725090644796,-11444.947811,0.000244,11]
[336734268,1725090706725,516.0,0.00010959,2]
[336734269,1725090785791,1688.0,0.000235,120]
[336734270,1725091623093,152.19,0.00010959,2]
[336734277,1725091665305,1000.0,0.00023,120]
[336734278,1725091668204,300.0,0.00010849,2]
[336734279,1725091678972,152.8546,0.00010849,2]
[336734282,1725091750962,1000.0,0.00024,120]
[336734283,1725091794548,1000.0,0.00022,60]
[336734286,1725091831512,-500.0,0.00011,2]
[336734287,1725091831521,-179.82,0.00013699,2]
[336734288,1725091831530,-1050.0,0.00014,2]
[336734289,1725091831540,-1086.0,0.00015,2]
[336734290,1725091831549,-339.94677583,0.00015,2]
[336734291,1725091831558,-152.02,0.00017898,2]
[336734292,1725091831567,-150.0,0.00019254,2]
[336734293,1725091831576,-300.0,0.00019254,2]
[336734294,1725091831586,-3684.39,0.00019255,2]
[336734295,1725091831594,-500.0,0.00019255,2]
[336734296,1725091831603,-500.0,0.00019255,2]
[336734297,1725091831613,-500.0,0.00019255,2]
[336734298,1725091831621,-500.0,0.00019255,2]
[336734299,1725091831631,-500.0,0.00019255,2]
[336734300,1725091831643,-500.0,0.00019255,2]
[336734301,1725091831654,-500.0,0.00019255,2]
[336734302,1725091831665,-500.0,0.00019255,2]
[336734303,1725091831676,-500.0,0.00019255,2]
[336734304,1725091831685,-500.0,0.00019255,2]
[336734305,1725091831695,-500.0,0.00019255,2]
[336734306,1725091831706,-500.0,0.00019255,2]
[336734307,1725091831716,-500.0,0.00019255,2]
[336734308,1725091831726,-500.0,0.00019255,2]
[336734309,1725091831737,-500.0,0.00019255,2]
[336734310,1725091831747,-500.0,0.00019255,2]
[336734311,1725091831756,-500.0,0.00019255,2]
[336734312,1725091831767,-500.0,0.00019255,2]
[336734313,1725091831777,-500.0,0.00019255,2]
[336734315,1725091831786,-500.0,0.00019255,2]
[336734316,1725091831797,-500.0,0.00019255,2]
[336734317,1725091831807,-500.0,0.00019255,2]
[336734318,1725091831816,-500.0,0.00019255,2]
[336734319,1725091831825,-500.0,0.00019255,2]
[336734320,1725091831835,-500.0,0.00019255,2]
[336734321,1725091831844,-500.0,0.00019255,2]
[336734322,1725091831853,-500.0,0.00019255,2]
[336734323,1725091831864,-500.0,0.00019255,2]
[336734324,1725091831874,-500.0,0.00019255,2]
[336734325,1725091831883,-500.0,0.00019255,2]
[336734326,1725091831893,-500.0,0.00019255,2]
[336734327,1725091831902,-500.0,0.00019255,2]
[336734328,1725091831911,-500.0,0.00019255,2]
[336734329,1725091831920,-500.0,0.00019255,2]
[336734330,1725091831929,-500.0,0.00019255,2]
[336734331,1725091831938,-500.0,0.00019255,2]
[336734332,1725091831948,-500.0,0.00019255,2]
[336734333,1725091831957,-500.0,0.00019255,2]
[336734334,1725091831966,-500.0,0.00019255,2]
[336734335,1725091831976,-500.0,0.00019255,2]
[336734336,1725091831985,-500.0,0.00019255,2]
[336734337,1725091831994,-500.0,0.00019255,2]
[336734338,1725091832003,-500.0,0.00019255,2]
[336734339,1725091832012,-500.0,0.00019255,2]
[336734340,1725091832022,-500.0,0.00019255,2]
[336734341,1725091832031,-500.0,0.00019255,2]
[336734342,1725091832040,-500.0,0.00019255,2]
[336734343,1725091832049,-500.0,0.00019255,2]
[336734344,1725091832058,-500.0,0.00019255,2]
[336734345,1725091832067,-500.0,0.00019255,2]
[336734346,1725091832076,-500.0,0.00019255,2]
[336734347,1725091832086,-500.0,0.00019255,2]
[336734348,1725091832095,-500.0,0.00019255,2]
[336734349,1725091832104,-500.0,0.00019255,2]
[336734350,1725091832113,-500.0,0.00019255,2]
[336734351,1725091832121,-500.0,0.00019255,2]
[336734352,1725091832130,-500.0,0.00019255,2]
[336734353,1725091832139,-500.0,0.00019255,2]
[336734354,1725091832148,-500.0,0.00019255,2]
[336734355,1725091832158,-500.0,0.00019255,2]
[336734356,1725091832167,-500.0,0.00019255,2]
[336734357,1725091832176,-500.0,0.00019255,2]
[336734358,1725091832185,-500.0,0.00019255,2]
[336734359,1725091832194,-500.0,0.00019255,2]
[336734360,1725091832203,-500.0,0.00019255,2]
[336734361,1725091832213,-500.0,0.00019255,2]
[336734362,1725091832224,-500.0,0.00019255,2]
[336734363,1725091832234,-500.0,0.00019255,2]
[336734364,1725091832244,-500.0,0.00019255,2]
[336734365,1725091832254,-500.0,0.00019255,2]
[336734366,1725091832265,-500.0,0.00019255,2]
[336734367,1725091832276,-141.13915793,0.00019255,2]
[336734368,1725091832342,-358.86084207,0.00019255,2]
[336734369,1725091832352,-500.0,0.00019255,2]
[336734370,1725091832362,-500.0,0.00019255,2]
[336734371,1725091832376,-500.0,0.00019255,2]
[336734372,1725091832387,-500.0,0.00019255,2]
[336734373,1725091832400,-500.0,0.00019255,2]
[336734374,1725091832410,-500.0,0.00019255,2]
[336734375,1725091832421,-500.0,0.00019255,2]
[336734376,1725091832430,-500.0,0.00019255,2]
[336734377,1725091832439,-500.0,0.00019255,2]
[336734378,1725091832448,-500.0,0.00019255,2]
[336734379,1725091832458,-500.0,0.00019255,2]
[336734380,1725091832467,-82.59915793,0.00019255,2]
[336734381,1725091832545,-286.18192272,0.00019255,2]
[336734382,1725091835227,753.8947,0.000109,2]
[336734388,1725091837659,-131.21891935,0.00019255,2]
[336734389,1725091837670,-500.0,0.00019255,2]
[336734390,1725091837681,-500.0,0.00019255,2]
[336734391,1725091837691,-500.0,0.00019255,2]
[336734392,1725091837701,-500.0,0.00019255,2]
[336734393,1725091837710,-500.0,0.00019255,2]
[336734394,1725091837720,-500.0,0.00019255,2]
[336734395,1725091837731,-500.0,0.00019255,2]